fUSD/lending_fUSD_20250420
["ID","MTS","AMOUNT","RATE_DAILY","PERIOD"]
[358444413,1745150043655,1122.79668338,0.00063014,120]
[358444418,1745151031897,-250.0,0.00020656,2]
[358444419,1745151031908,-166.18948602,0.00022,2]
[358444420,1745151031951,-83.81051398,0.00022,2]
[358444421,1745151031960,-248.30620345,0.00027989,2]
[358444422,1745151031970,-2729.84677781,0.0003748,2]
[358444423,1745151031978,-500.0,0.00037855,2]
[358444424,1745151031987,-2048.00643317,0.000379,14]
[358444425,1745151031996,-1249.08,0.00037931,5]
[358444426,1745151032006,-1042.33147564,0.00037931,5]
[358444427,1745151032018,-202.39852436,0.00037931,5]
[358444428,1745151032027,-344.86001266,0.00037931,5]
[358444429,1745151032058,-272.99875184,0.00037931,5]
[358444430,1745151032114,-613.0412355,0.00037931,5]
[358444431,1745151032124,-150.99,0.00037931,2]
[358444432,1745151032133,-299.99,0.00037931,30]
[358444433,1745151032142,-1236.34,0.00037931,5]
[358444434,1745151032152,-1231.8,0.00037931,5]
[358444435,1745151032162,-1257.6,0.00037931,5]
[358444436,1745151032171,-153.36,0.00037931,2]
[358444437,1745151032180,-1241.21,0.00037932,5]
[358444438,1745151032189,-1255.18,0.00037953,5]
[358444439,1745151032199,-1272.89,0.00037955,5]
[358444440,1745151032208,-1273.06,0.00037955,5]
[358444441,1745151032218,-152.19,0.0003889,2]
[358444442,1745151032227,-1248.7,0.00038931,5]
[358444443,1745151032236,-1257.32,0.00038931,5]
[358444444,1745151032246,-1238.56,0.00038931,5]
[358444445,1745151032255,-1261.65,0.00038931,5]
[358444446,1745151032264,-1059.9512391,0.00038931,5]
[358444490,1745151040177,-208.7587609,0.00038931,5]
[358444492,1745151040186,-360.82879863,0.00038931,5]
[358444495,1745151040197,-164.15121936,0.00038931,5]
[358444497,1745151040206,-259.246,0.00039087,53]
[358444499,1745151040216,-1785.72278063,0.0003921,15]
[358444501,1745151040228,-262.28365246,0.0003921,15]
[358444503,1745151040237,-3940.89564725,0.00039957,2]
[358444529,1745151716890,170.837,0.0001953,2]
[358444530,1745151962019,250.0,0.000199,5]
[358444543,1745152159242,601.497,0.00026375,30]
[358444544,1745152159422,601.497,0.00026375,30]
[358444545,1745152159606,601.497,0.00026375,30]
[358444546,1745152159799,601.497,0.00026375,30]
[358444547,1745152159996,601.497,0.00026375,30]
[358444548,1745152160423,601.497,0.00026375,30]
[358444549,1745152160656,601.497,0.00026375,30]
[358444550,1745152160865,601.497,0.00026375,30]
[358444551,1745152161055,601.497,0.00026375,30]
[358444552,1745152161253,601.497,0.00026375,30]
[358444553,1745152189306,-3270.70843324,0.000198,2]
[358444555,1745152189359,-3270.70843324,0.000198,2]
[358444556,1745152189418,-3270.70843324,0.000198,2]
[358444557,1745152189472,-2307.98230215,0.000198,2]
[358444568,1745152232079,-499.78192115,0.000198,2]
[358444569,1745152232298,-30158.56871522,0.000198,2]
[358444622,1745152235188,-2593.376,0.000198,2]
[358444627,1745152238119,-4456.62543267,0.000198,2]
[358444628,1745152238129,-250.0,0.000199,2]
[358444629,1745152238138,-151.4,0.0001999,2]
[358444630,1745152238147,-233.30192588,0.00019999,2]
[358444632,1745152238156,-877431.07004628,0.0002,2]
[358444634,1745152238165,-28061.31163806,0.0002,2]
[358444636,1745152238174,-1671.58548327,0.0002015,2]
[358444638,1745152238182,-2005.00973281,0.000209,3]
[358444639,1745152238191,-1153.17237654,0.00021,2]
[358444640,1745152238199,-190.32537946,0.00021,2]
[358444641,1745152238208,-250.0,0.0002178,5]
[358444642,1745152238217,-250.0,0.0002178,2]
[358444643,1745152238225,-3311.30043707,0.00021868,2]
[358444644,1745152238234,-247.42474488,0.00022,2]
[358444645,1745152238242,-500.0,0.00022,2]
[358444646,1745152238250,-231.87305133,0.0002211,2]
[358444647,1745152238259,-504.71617334,0.0002271,2]
[358444648,1745152238268,-402.89251525,0.0002301,2]
[358444649,1745152238276,-250.0,0.00023039,5]
[358444650,1745152238284,-250.0,0.00023039,2]
[358444651,1745152238293,-200.0,0.000235,2]
[358444652,1745152238302,-2055.42788938,0.000239,2]
[358444653,1745152238310,-500.0,0.00023973,2]
[358444654,1745152238319,-984.19711138,0.00024,2]
[358444655,1745152238327,-50247.86448267,0.00024,2]
[358444656,1745152238335,-1098.73,0.00024,2]
[358444657,1745152238344,-785.60788377,0.0002402,2]
[358444658,1745152238352,-747.41,0.00024174,2]
[358444659,1745152238360,-1339.61,0.00024174,2]
[358444660,1745152238368,-406.71084539,0.0002421,2]
[358444661,1745152238377,-3563.7694695,0.0002421,2]
[358444662,1745152238385,-15719.54661239,0.00024444,2]
[358444663,1745152238393,-1885.57434491,0.00025,7]
[358444664,1745152238402,-657.32,0.00025786,2]
[358444665,1745152238411,-150.99,0.00025786,2]
[358444666,1745152238419,-299.99,0.00025786,12]
[358444667,1745152238428,-1065.18211282,0.00026,2]
[358444668,1745152238437,-500.0,0.00026375,2]
[358444669,1745152238445,-250.0,0.00027401,2]
[358444670,1745152238454,-3413.04,0.00027497,2]
[358444671,1745152238462,-2055.42788929,0.00028011,2]
[358444672,1745152238471,-500.0,0.00029452,5]
[358444673,1745152238479,-153.36,0.0003,2]
[358444674,1745152238487,-339.04170607,0.0003,2]
[358444675,1745152238495,-1000.0,0.00031854,5]
[358444676,1745152238504,-154.69845033,0.00032,2]
[358444677,1745152238513,-2055.42788929,0.00032122,2]
[358444678,1745152238522,-1000.0,0.00033,2]
[358444679,1745152238530,-703.0,0.000362,2]
[358444680,1745152238539,-2055.42788929,0.00036233,2]
[358444681,1745152238547,-1098.73,0.000363,14]
[358444683,1745152238556,-3597.85,0.00037857,2]
[358444684,1745152238564,-300.0,0.00038466,2]
[358444686,1745152238573,-1000.0,0.00039,2]
[358444688,1745152238582,-1000.0,0.00039,30]
[358444689,1745152238590,-500.0,0.00039,2]
[358444690,1745152238598,-500.0,0.00039726,15]
[358444691,1745152238607,-500.0,0.00039726,15]
[358444693,1745152238616,-500.0,0.00039726,15]
[358444694,1745152238623,-500.0,0.00039726,15]
[358444695,1745152238632,-500.0,0.00039726,15]
[358444696,1745152238641,-500.0,0.00039726,15]
[358444697,1745152238649,-500.0,0.00039726,15]
[358444698,1745152238658,-500.0,0.00039726,15]
[358444699,1745152238667,-500.0,0.00039726,15]
[358444700,1745152238676,-500.0,0.00039726,15]
[358444701,1745152238685,-500.0,0.00039726,15]
[358444702,1745152238694,-500.0,0.00039726,15]
[358444704,1745152238702,-500.0,0.00039726,15]
[358444705,1745152238711,-500.0,0.00039726,15]
[358444707,1745152238720,-500.0,0.00039726,15]
[358444709,1745152238729,-500.0,0.00039726,15]
[358444711,1745152238738,-500.0,0.00039726,15]
[358444712,1745152238746,-500.0,0.00039726,15]
[358444713,1745152238756,-500.0,0.00039726,15]
[358444714,1745152238764,-500.0,0.00039726,15]
[358444715,1745152238773,-194.44076142,0.00039726,15]
[358444716,1745152238782,-500.0,0.00039726,15]
[358444717,1745152238791,-300.0,0.00039835,2]
[358444718,1745152238799,-200.0,0.00039957,2]
[358444719,1745152238808,-384.10829551,0.00039957,2]
[358444720,1745152238817,-200.0,0.00039957,2]
[358444721,1745152238825,-300.0,0.0004,120]
[358444722,1745152238834,-1187.52702939,0.00040214,2]
[358444723,1745152238843,-2055.42788929,0.00040344,15]
[358444724,1745152238851,-166.66,0.00041406,2]
[358444725,1745152238859,-703.13919845,0.000416,2]
[358444726,1745152238868,-1500.0,0.00041873,10]
[358444727,1745152238876,-319.47144769,0.00041947,2]
[358444728,1745152238885,-166.66,0.00042773,2]
[358444729,1745152238894,-356.0,0.0004287,2]
[358444730,1745152238903,-1098.73,0.000429,14]
[358444731,1745152238911,-10910.3658019,0.00043225,2]
[358444732,1745152238920,-513.33,0.00043362,2]
[358444733,1745152238929,-502.0,0.00043479,2]
[358444734,1745152238938,-150.0,0.00043496,7]
[358444735,1745152238946,-592.09,0.00043603,120]
[358444736,1745152238956,-172.86,0.00043632,2]
[358444737,1745152238965,-680.24,0.00043635,2]
[358444738,1745152238974,-194.25,0.00043676,120]
[358444739,1745152238983,-1000.0,0.00043679,2]
[358444740,1745152238991,-200.05,0.00043686,2]
[358444741,1745152239001,-293.813,0.00043735,68]
[358444742,1745152239012,-12500.0,0.00043782,7]
[358444743,1745152239021,-12500.0,0.00043791,7]
[358444744,1745152239034,-12500.0,0.000438,7]
[358444745,1745152239043,-151.4,0.00043808,2]
[358444746,1745152239052,-12500.0,0.00043809,7]
[358444747,1745152239061,-12500.0,0.00043817,7]
[358444748,1745152239071,-150.0,0.00043825,2]
[358444749,1745152239080,-150.0,0.00043825,2]
[358444750,1745152239089,-150.0,0.00043825,2]
[358444751,1745152239098,-500.0,0.00043825,2]
[358444752,1745152239108,-150.0,0.00043825,2]
[358444753,1745152239117,-150.0,0.00043825,2]
[358444754,1745152239126,-150.0,0.00043825,2]
[358444755,1745152239135,-461.0,0.00043825,2]
[358444756,1745152239144,-500.0,0.00043825,2]
[358444757,1745152239152,-150.0,0.00043825,2]
[358444758,1745152239161,-150.0,0.00043825,2]
[358444759,1745152239170,-151.70442057,0.00043825,2]
[358444760,1745152239178,-150.0,0.00043825,2]
[358444761,1745152239187,-152.57072744,0.00043825,7]
[358444762,1745152239195,-500.0,0.00043825,7]
[358444763,1745152239203,-500.0,0.00043825,7]
[358444764,1745152239211,-150.0,0.00043825,7]
[358444765,1745152239220,-150.0,0.00043825,2]
[358444766,1745152239229,-500.0,0.00043825,7]
[358444767,1745152239237,-500.0,0.00043825,7]
[358444768,1745152239246,-150.0,0.00043825,2]
[358444769,1745152239254,-500.0,0.00043825,7]
[358444770,1745152239263,-150.0,0.00043825,7]
[358444771,1745152239272,-500.0,0.00043825,7]
[358444772,1745152239281,-150.0,0.00043825,7]
[358444773,1745152239289,-500.0,0.00043825,7]
[358444774,1745152239298,-150.0,0.00043825,7]
[358444775,1745152239307,-150.0,0.00043825,7]
[358444776,1745152239315,-500.0,0.00043825,7]
[358444777,1745152239323,-12500.0,0.00043826,7]
[358444778,1745152239331,-12500.0,0.00043835,7]
[358444779,1745152239340,-415.79447952,0.00043835,7]
[358444780,1745152239349,-500.0,0.00043836,2]
[358444781,1745152239357,-1390.2217,0.00043888,30]
[358444782,1745152239366,-172.31436303,0.00044,30]
[358444783,1745152239374,-166.66,0.0004414,2]
[358444784,1745152239383,-150.0,0.00044373,2]
[358444785,1745152239391,-150.0,0.00044373,2]
[358444786,1745152239400,-500.0,0.00044373,2]
[358444787,1745152239409,-150.0,0.00044373,2]
[358444788,1745152239417,-150.0,0.00044373,2]
[358444789,1745152239426,-150.0,0.00044373,2]
[358444790,1745152239435,-461.0,0.00044373,2]
[358444791,1745152239443,-500.0,0.00044373,2]
[358444792,1745152239452,-150.0,0.00044373,2]
[358444793,1745152239460,-150.0,0.00044373,2]
[358444794,1745152239468,-150.0,0.00044373,2]
[358444795,1745152239477,-500.0,0.00044373,7]
[358444796,1745152239486,-500.0,0.00044373,7]
[358444797,1745152239495,-206.20190545,0.00044373,7]
[358444798,1745152239503,-500.0,0.00044373,7]
[358444799,1745152239512,-500.0,0.00044373,7]
[358444800,1745152239521,-641.68994971,0.00044373,7]
[358444801,1745152239530,-150.0,0.00044373,7]
[358444802,1745152239539,-508.25546657,0.00044373,7]
[358444803,1745152239547,-150.0,0.00044373,7]
[358444804,1745152239556,-500.0,0.00044373,7]
[358444805,1745152239565,-150.0,0.00044373,7]
[358444806,1745152239574,-203.93193719,0.00044373,7]
[358444807,1745152239583,-502.13116895,0.00044373,7]
[358444808,1745152239592,-500.0,0.00044384,2]
[358444809,1745152239600,-2055.42788929,0.00044456,15]
[358444810,1745152239609,-1000.0,0.00044745,120]
[358444811,1745152239617,-1261.47,0.00044835,5]
[358444812,1745152239626,-200.0,0.00044921,2]
[358444813,1745152239634,-200.0,0.00044921,2]
[358444814,1745152239643,-500.0,0.00044921,2]
[358444815,1745152239651,-150.0,0.00044921,2]
[358444816,1745152239660,-150.0,0.00044921,2]
[358444817,1745152239669,-206.73624209,0.00044921,2]
[358444818,1745152239677,-461.0,0.00044921,2]
[358444819,1745152239685,-500.0,0.00044921,2]
[358444820,1745152239693,-150.0,0.00044921,2]
[358444821,1745152239702,-249.44330278,0.00044921,2]
[358444822,1745152239711,-218.79082503,0.00044921,2]
[358444823,1745152239720,-500.0,0.00044921,7]
[358444824,1745152239728,-500.0,0.00044921,7]
[358444825,1745152239737,-500.0,0.00044921,7]
[358444826,1745152239746,-500.0,0.00044921,7]
[358444827,1745152239755,-150.0,0.00044921,7]
[358444828,1745152239764,-208.46832128,0.00044921,7]
[358444829,1745152239772,-500.0,0.00044921,7]
[358444830,1745152239781,-150.0,0.00044921,7]
[358444831,1745152239790,-500.0,0.00044932,2]
[358444832,1745152239800,-513.34,0.00044968,2]
[358444833,1745152239809,-633.0,0.00045,120]
[358444834,1745152239818,-151.0,0.00045,120]
[358444835,1745152239827,-736.24955697,0.00045,120]
[358444836,1745152239837,-1068.74869774,0.00045,30]
[358444837,1745152239846,-356.0,0.00045134,2]
[358444838,1745152239855,-1098.73,0.000452,14]
[358444839,1745152239863,-500.0,0.00045469,2]
[358444840,1745152239872,-153.92873938,0.00045469,2]
[358444841,1745152239881,-150.0,0.00045469,2]
[358444842,1745152239891,-461.0,0.00045469,2]
[358444843,1745152239899,-500.0,0.00045469,2]
[358444845,1745152239906,-150.0,0.00045469,2]
[358444847,1745152239913,-500.0,0.00045469,7]
[358444848,1745152239920,-500.0,0.00045469,7]
[358444849,1745152239927,-500.0,0.00045469,7]
[358444850,1745152239935,-500.0,0.00045469,7]
[358444851,1745152239942,-150.0,0.00045469,7]
[358444852,1745152239950,-449.53834004,0.00045469,7]
[358444853,1745152239959,-150.0,0.00045469,7]
[358444855,1745152239969,-500.0,0.0004548,2]
[358444856,1745152239977,-166.66,0.00045506,2]
[358444857,1745152239986,-996.0,0.000456,30]
[358444858,1745152239996,-702.0,0.000456,30]
[358444859,1745152240006,-264.0592,0.00045628,2]
[358444860,1745152240015,-212.10741547,0.00046017,2]
[358444861,1745152240028,-150.0,0.00046017,2]
[358444862,1745152240038,-461.0,0.00046017,2]
[358444863,1745152240047,-326.41588351,0.00046017,2]
[358444865,1745152240057,-150.0,0.00046017,2]
[358444866,1745152240224,-500.0,0.00046017,7]
[358444867,1745152240234,-500.0,0.00046017,7]
[358444868,1745152240243,-507.64675778,0.00046017,7]
[358444869,1745152240252,-500.0,0.00046017,7]
[358444870,1745152240262,-250.0,0.00046017,7]
[358444871,1745152240272,-170.66879693,0.00046017,7]
[358444872,1745152240281,-500.0,0.00046028,2]
[358444873,1745152240290,-152.532,0.00046318,2]
[358444874,1745152240299,-150.0,0.0004651,120]
[358444875,1745152240308,-192.04724618,0.00046565,2]
[358444876,1745152240318,-461.0,0.00046565,2]
[358444877,1745152240327,-234.12640295,0.00046565,2]
[358444878,1745152240337,-500.0,0.00046565,7]
[358444879,1745152240346,-500.0,0.00046565,7]
[358444880,1745152240355,-500.0,0.00046565,7]
[358444881,1745152240365,-513.34,0.00046574,2]
[358444882,1745152240374,-500.0,0.00046576,2]
[358444883,1745152240383,-1130.46492482,0.000468,120]
[358444884,1745152240392,-166.66,0.00046873,2]
[358444885,1745152240402,-1167.12847415,0.00047,14]
[358444886,1745152240411,-461.0,0.00047113,2]
[358444887,1745152240421,-500.0,0.00047113,7]
[358444888,1745152240430,-500.0,0.00047113,7]
[358444889,1745152240439,-649.95808987,0.00047113,7]
[358444890,1745152240449,-500.0,0.00047124,2]
[358444891,1745152240458,-356.0,0.00047398,2]
[358444892,1745152240467,-3084.4283,0.00047616,2]
[358444893,1745152240477,-461.0,0.00047661,2]
[358444894,1745152240487,-500.0,0.00047661,7]
[358444895,1745152240496,-500.0,0.00047661,7]
[358444896,1745152240506,-500.0,0.00047672,2]
[358444897,1745152240516,-20432.1102225,0.000477,3]
[358444898,1745152240525,-4633.43958588,0.000477,3]
[358444899,1745152240710,-8735.85992402,0.000477,3]
[358444900,1745152240720,-1556.50509513,0.0004771,120]
[358444901,1745152240729,-2000.0,0.00047717,120]
[358444902,1745152240739,-194.79027855,0.00047717,60]
[358444903,1745152240748,-205.36112106,0.00047717,120]
[358444904,1745152240757,-163.93332969,0.00047717,2]
[358444905,1745152240766,-150.0,0.00047717,2]
[358444906,1745152240776,-500.0,0.00047717,120]
[358444907,1745152240785,-500.0,0.00047717,120]
[358444908,1745152240795,-500.0,0.00047717,120]
[358444909,1745152240804,-500.0,0.00047717,120]
[358444910,1745152240813,-500.0,0.00047717,120]
[358444911,1745152240822,-254.13723284,0.00047717,120]
[358444912,1745152240831,-50299.77541669,0.00047717,30]
[358444913,1745152240840,-500.0,0.00047717,120]
[358444914,1745152240849,-500.0,0.00047717,120]
[358444915,1745152240858,-500.0,0.00047717,120]
[358444916,1745152240867,-500.0,0.00047717,120]
[358444917,1745152240877,-500.0,0.00047717,120]
[358444918,1745152240886,-500.0,0.00047717,120]
[358444919,1745152240895,-500.0,0.00047717,120]
[358444920,1745152240905,-500.0,0.00047717,120]
[358444921,1745152240914,-500.0,0.00047717,120]
[358444922,1745152240924,-500.0,0.00047717,120]
[358444923,1745152240933,-500.0,0.00047717,120]
[358444924,1745152240942,-529.51138379,0.00047717,120]
[358444925,1745152240952,-500.0,0.00047717,120]
[358444926,1745152240961,-500.0,0.00047717,120]
[358444927,1745152240971,-500.0,0.00047717,120]
[358444928,1745152240981,-403.49543327,0.00047717,120]
[358444929,1745152240990,-1725.61146472,0.00047717,30]
[358444930,1745152241000,-150.28595053,0.00047717,30]
[358444931,1745152241010,-271.032717,0.00047717,30]
[358444932,1745152241020,-270.13464921,0.00047717,91]
[358444933,1745152241033,-301.71464609,0.00047717,120]
[358444934,1745152241043,-890.43624024,0.00047717,120]
[358444935,1745152241053,-453.53605266,0.00047717,30]
[358444936,1745152241062,-357.42118665,0.00047717,30]
[358444937,1745152241073,-244.29253659,0.00047717,10]
[358444938,1745152241082,-159.00800791,0.00047717,120]
[358444939,1745152241092,-201005.485,0.00047717,30]
[358444940,1745152241102,-253.43727486,0.00047717,90]
[358444941,1745152241112,-2019.53170922,0.00047717,2]
[358444942,1745152241122,-869.65097801,0.00047717,7]
[358444943,1745152241131,-165.28756003,0.00047717,120]
[358444944,1745152241141,-1035.30256841,0.00047717,7]
[358444945,1745152241150,-417.14064335,0.00047717,120]
[358444946,1745152241159,-1281.98531824,0.00047717,4]
[358444947,1745152241169,-464.27902711,0.00047717,7]
[358444948,1745152241178,-369.88244772,0.00047717,120]
[358444949,1745152241187,-996.799999,0.00047717,30]
[358444950,1745152241197,-419.2476672,0.00047717,120]
[358444951,1745152241207,-417.60282905,0.00047717,7]
[358444952,1745152241215,-169.15135109,0.00047717,120]
[358444953,1745152241225,-271.95990787,0.00047717,7]
[358444954,1745152241235,-919.06989572,0.00047717,3]
[358444955,1745152241244,-2051.75559547,0.00047717,3]
[358444956,1745152241253,-515.33024878,0.00047717,30]
[358444957,1745152241263,-155.66530785,0.00047717,120]
[358444958,1745152241272,-1897.72597564,0.00047717,120]
[358444959,1745152241281,-175.39329298,0.00047717,30]
[358444960,1745152241290,-218.64261785,0.00047717,120]
[358444961,1745152241299,-1521.84517362,0.00047717,30]
[358444962,1745152241309,-986.80234905,0.00047717,120]
[358444963,1745152241318,-367.54575953,0.00047717,120]
[358444964,1745152241327,-380.1287292,0.00047717,120]
[358444965,1745152241337,-861.1465449,0.00047717,2]
[358444966,1745152241346,-178.03002089,0.00047717,120]
[358444967,1745152241355,-9214.7501207,0.00047717,2]
[358444968,1745152241386,-308.66981791,0.00047717,2]
[358444969,1745152241395,-499.69134013,0.00047717,2]
[358444970,1745152241405,-2262.98158041,0.00047717,10]
[358444971,1745152241414,-1394.15,0.00047717,30]
[358444972,1745152241423,-500.0,0.00047841,120]
[358444973,1745152241432,-676.42658982,0.000479,120]
[358444974,1745152241442,-856.74,0.00048,42]
[358444975,1745152241451,-856.74,0.00048,42]
[358444976,1745152241460,-856.74,0.00048,42]
[358444977,1745152241470,-856.74,0.00048,42]
[358444978,1745152241479,-856.74,0.00048,42]
[358444979,1745152241488,-856.74,0.00048,42]
[358444980,1745152241498,-856.74,0.00048,42]
[358444981,1745152241507,-856.74,0.00048,42]
[358444982,1745152241516,-856.74,0.00048,42]
[358444983,1745152241525,-856.74,0.00048,42]
[358444984,1745152241534,-856.74,0.00048,42]
[358444985,1745152241543,-856.74,0.00048,42]
[358444986,1745152241553,-13369.2995099,0.00048022,4]
[358444987,1745152241562,-15509.41299664,0.00048031,3]
[358445006,1745152243421,-151.0,0.00037322,2]
[358445007,1745152243431,-4922.69722586,0.00048031,3]
[358445008,1745152243440,-13369.2995099,0.00048031,4]
[358445009,1745152243450,-9067.47138826,0.0004804,2]
[358445010,1745152243460,-34721.426,0.00048041,2]
[358445014,1745152244869,-1283.15073113,0.00048041,2]
[358445015,1745152246442,-129.70536887,0.00048041,2]
[358445016,1745152246452,-513.33,0.0004818,2]
[358445017,1745152246462,-407.96463113,0.00048209,2]
[358445023,1745153432657,-215.54,0.00021,2]
[358445024,1745153432666,-426.06804426,0.00021,2]
[358445059,1745153438737,-3298.93195574,0.00021,2]
[358445060,1745153438747,-200.0,0.000231,2]
[358445061,1745153438757,-250.0,0.000231,2]
[358445062,1745153438767,-250.0,0.000231,5]
[358445063,1745153438776,-200.0,0.000241,2]
[358445064,1745153438786,-200.0,0.000251,2]
[358445065,1745153438796,-150.0,0.00025758,2]
[358445066,1745153438805,-332.16417571,0.00025758,2]
[358445067,1745153438815,-200.0,0.000261,2]
[358445068,1745153438825,-346.18,0.000269,2]
[358445069,1745153438834,-299.99,0.000269,12]
[358445070,1745153438844,-150.99,0.000269,2]
[358445072,1745153438853,-1938.17607504,0.000269,7]
[358445073,1745153438863,-200.0,0.000271,2]
[358445074,1745153438872,-999.99,0.000271,2]
[358445075,1745153438882,-276.86,0.00028,2]
[358445076,1745153438891,-200.0,0.000281,2]
[358445078,1745153438901,-419.67425316,0.00028728,2]
[358445079,1745153438911,-200.0,0.000291,2]
[358445080,1745153438920,-501.0,0.00029243,2]
[358445081,1745153438930,-1866.24188083,0.00029243,2]
[358445082,1745153438941,-795.0,0.00030318,2]
[358445083,1745153438951,-152.0,0.00030318,2]
[358445084,1745153438960,-2137.0,0.00030318,2]
[358445085,1745153438970,-152.0,0.00030318,2]
[358445086,1745153438980,-150.0,0.00030896,2]
[358445087,1745153438991,-1485.07881094,0.00030896,2]
[358445088,1745153439001,-200.0,0.00031,2]
[358445089,1745153439010,-795.0,0.00033318,2]
[358445090,1745153439023,-150.0,0.00034548,10]
[358445091,1745153439033,-235.0,0.00035,5]
[358445092,1745153439043,-368.179,0.00036318,2]
[358445093,1745153439053,-259.45899864,0.00038356,2]
[358445094,1745153439062,-856.33857481,0.00039028,2]
[358445095,1745153439071,-1000.0,0.0004,30]
[358445096,1745153439081,-158.12,0.0004,2]
[358445097,1745153439091,-170.0,0.00041,14]
[358445098,1745153439101,-1587.79900782,0.00041844,2]
[358445099,1745153439111,-1000.0,0.000425,21]
[358445100,1745153439121,-1000.0,0.00043,30]
[358445101,1745153439130,-500.0,0.000435,30]
[358445102,1745153439140,-3039.02534982,0.00043629,2]
[358445103,1745153439150,-500.0,0.00043781,2]
[358445104,1745153439159,-1000.0,0.00044,30]
[358445105,1745153439168,-200.0,0.00044,120]
[358445106,1745153439179,-175.35,0.00044158,2]
[358445107,1745153439189,-600.0,0.000449,2]
[358445108,1745153439199,-4183.41795361,0.00044944,2]
[358445109,1745153439208,-514.90291555,0.00044973,2]
[358445110,1745153439218,-1000.0,0.00045,60]
[358445111,1745153439227,-2000.0,0.00045,30]
[358445112,1745153439237,-2000.0,0.00045,120]
[358445113,1745153439246,-187.74565539,0.00045,30]
[358445114,1745153439255,-153.35,0.00045,120]
[358445115,1745153439265,-591.437277,0.00045562,7]
[358445116,1745153439274,-3000.0,0.00046,30]
[358445117,1745153439284,-359.28,0.00046406,2]
[358445118,1745153439293,-500.0,0.00047616,2]
[358445119,1745153439302,-150.0,0.000477,120]
[358445120,1745153439312,-2000.0,0.00047729,120]
[358445121,1745153439321,-198.93,0.00047729,30]
[358445122,1745153439330,-500.0,0.00047729,120]
[358445123,1745153439340,-500.0,0.00047729,120]
[358445124,1745153439349,-500.0,0.00047729,120]
[358445125,1745153439359,-500.0,0.00047729,120]
[358445126,1745153439368,-500.0,0.00047729,120]
[358445127,1745153439377,-254.13723284,0.00047729,120]
[358445128,1745153439387,-194.79027855,0.00047729,60]
[358445129,1745153439396,-150.0,0.00047729,2]
[358445130,1745153439405,-500.0,0.00047729,120]
[358445131,1745153439415,-500.0,0.00047729,120]
[358445132,1745153439424,-500.0,0.00047729,120]
[358445133,1745153439433,-500.0,0.00047729,120]
[358445134,1745153439442,-500.0,0.00047729,120]
[358445135,1745153439451,-500.0,0.00047729,120]
[358445136,1745153439459,-500.0,0.00047729,120]
[358445137,1745153439468,-500.0,0.00047729,120]
[358445138,1745153439477,-500.0,0.00047729,120]
[358445139,1745153439486,-500.0,0.00047729,120]
[358445140,1745153439495,-500.0,0.00047729,120]
[358445141,1745153439505,-529.51138379,0.00047729,120]
[358445142,1745153439514,-500.0,0.00047729,120]
[358445143,1745153439523,-500.0,0.00047729,120]
[358445144,1745153439532,-500.0,0.00047729,120]
[358445145,1745153439541,-403.49543327,0.00047729,120]
[358445146,1745153439550,-1168.06448325,0.00047729,120]
[358445147,1745153439559,-662.75313557,0.0004773,2]
[358445148,1745153439568,-154.65,0.00047839,2]